[Event "Titled Tuesday Blitz August 09 Early 2022"]
[White "Zhukov, Maksim"]
[Black "Miszler, Levente"]
[WhiteFideId "34181790"]
[BlackFideId "763276"]
[WhiteElo "1978"]
[BlackElo "1966"]
[Result "1-0"]
[Round "05"]
[TimeControl "180+1"]
[Date "2022.08.09"]
[WhiteClock "0:00:31"]
[BlackClock "0:00:06"]

1. d4 {[%clk 0:03:00]}  e6 {[%clk 0:03:00]} 2. Nf3 {[%clk 0:03:00]}  d5 {[%clk 0:03:00]} 3. g3 {[%clk 0:03:01]}  Nf6 {[%clk 0:02:57]} 4. Bg2 {[%clk 0:03:02]}  Be7 {[%clk 0:02:52]} 5. O-O {[%clk 0:03:03]}  O-O {[%clk 0:02:53]} 6. c4 {[%clk 0:03:03]}  c6 {[%clk 0:02:49]} 7. Qc2 {[%clk 0:03:03]}  Nbd7 {[%clk 0:02:49]} 8. Nbd2 {[%clk 0:03:04]}  b6 {[%clk 0:02:45]} 9. e4 {[%clk 0:03:04]}  dxe4 {[%clk 0:02:44]} 10. Nxe4 {[%clk 0:03:05]}  Bb7 {[%clk 0:02:37]} 11. Rd1 {[%clk 0:03:04]}  Nxe4 {[%clk 0:02:37]} 12. Qxe4 {[%clk 0:03:05]}  Nf6 {[%clk 0:02:37]} 13. Qc2 {[%clk 0:03:06]}  Qc8 {[%clk 0:02:35]} 14. c5 {[%clk 0:03:06]}  Rd8 {[%clk 0:02:32]} 15. b4 {[%clk 0:03:01]}  Nd5 {[%clk 0:02:29]} 16. Bd2 {[%clk 0:02:59]}  b5 {[%clk 0:02:19]} 17. Ne5 {[%clk 0:02:59]}  f6 {[%clk 0:02:14]} 18. Nd3 {[%clk 0:02:54]}  Qc7 {[%clk 0:02:12]} 19. Re1 {[%clk 0:02:54]}  Bc8 {[%clk 0:02:12]} 20. a4 {[%clk 0:02:50]}  bxa4 {[%clk 0:02:08]} 21. Qxa4 {[%clk 0:02:43]}  Bf8 {[%clk 0:01:54]} 22. Nf4 {[%clk 0:02:34]}  Kf7 {[%clk 0:00:57]} 23. Qc2 {[%clk 0:02:21]}  g6 {[%clk 0:00:56]} 24. Bh3 {[%clk 0:02:17]}  Nxf4 {[%clk 0:00:46]} 25. Bxf4 {[%clk 0:02:18]}  Qb7 {[%clk 0:00:46]} 26. Rab1 {[%clk 0:02:01]}  Rxd4 {[%clk 0:00:43]} 27. b5 {[%clk 0:01:55]}  Rxf4 {[%clk 0:00:36]} 28. gxf4 {[%clk 0:01:49]}  Qc7 {[%clk 0:00:35]} 29. Qe4 {[%clk 0:01:43]}  Bxc5 {[%clk 0:00:19]} 30. Qxc6 {[%clk 0:00:53]}  Bb6 {[%clk 0:00:14]} 31. Qxa8 {[%clk 0:00:50]}  Bb7 {[%clk 0:00:11]} 32. Qh8 {[%clk 0:00:46]}  Qxf4 {[%clk 0:00:07]} 33. Bxe6+ {[%clk 0:00:38]}  Ke7 {[%clk 0:00:06]} 34. Qxh7+ {[%clk 0:00:37]}  Kd6 {[%clk 0:00:06]} 35. Qd7+ {[%clk 0:00:35]}  Kc5 {[%clk 0:00:06]} 36. Rec1+ {[%clk 0:00:31]} 1-0


[Site "https://www.chess.com"]

[Event "Titled Tuesday Blitz August 09 Early 2022"]
[White "Zierk, Steven"]
[Black "Hambleton, Aman"]
[WhiteFideId "2034255"]
[BlackFideId "2606577"]
[WhiteElo "2494"]
[BlackElo "2538"]
[Result "0-1"]
[Round "05"]
[TimeControl "180+1"]
[Date "2022.08.09"]
[WhiteClock "0:00:04"]
[BlackClock "0:00:03"]

1. e4 {[%clk 0:02:54]}  c5 {[%clk 0:02:48]} 2. Nf3 {[%clk 0:02:54]}  e6 {[%clk 0:02:47]} 3. d4 {[%clk 0:02:54]}  cxd4 {[%clk 0:02:47]} 4. Nxd4 {[%clk 0:02:54]}  Nc6 {[%clk 0:02:47]} 5. Nc3 {[%clk 0:02:55]}  Qc7 {[%clk 0:02:47]} 6. Be3 {[%clk 0:02:55]}  a6 {[%clk 0:02:44]} 7. Qf3 {[%clk 0:02:55]}  b5 {[%clk 0:02:38]} 8. Nxc6 {[%clk 0:02:50]}  Qxc6 {[%clk 0:02:37]} 9. O-O-O {[%clk 0:02:47]}  Bb7 {[%clk 0:02:37]} 10. Bd3 {[%clk 0:02:24]}  Nf6 {[%clk 0:02:00]} 11. Rhe1 {[%clk 0:02:13]}  b4 {[%clk 0:01:35]} 12. Nd5 {[%clk 0:02:07]}  Nxd5 {[%clk 0:01:33]} 13. exd5 {[%clk 0:02:05]}  Qxd5 {[%clk 0:01:33]} 14. Qg3 {[%clk 0:01:58]}  Qxa2 {[%clk 0:00:50]} 15. Qc7 {[%clk 0:01:55]}  Bc6 {[%clk 0:00:36]} 16. Bd4 {[%clk 0:01:32]}  Qd5 {[%clk 0:00:08]} 17. Be4 {[%clk 0:01:07]}  Qb5 {[%clk 0:00:08]} 18. Bd3 {[%clk 0:00:46]}  Qb8 {[%clk 0:00:06]} 19. Qxb8+ {[%clk 0:00:38]}  Rxb8 {[%clk 0:00:06]} 20. Bxa6 {[%clk 0:00:38]}  Be7 {[%clk 0:00:05]} 21. Bxg7 {[%clk 0:00:37]}  Rg8 {[%clk 0:00:05]} 22. Be5 {[%clk 0:00:37]}  Ra8 {[%clk 0:00:05]} 23. Bd3 {[%clk 0:00:32]}  Rxg2 {[%clk 0:00:05]} 24. Bg3 {[%clk 0:00:30]}  Ra1+ {[%clk 0:00:02]} 25. Kd2 {[%clk 0:00:30]}  Rxd1+ {[%clk 0:00:02]} 26. Rxd1 {[%clk 0:00:27]}  h5 {[%clk 0:00:02]} 27. h4 {[%clk 0:00:18]}  f5 {[%clk 0:00:02]} 28. Ke3 {[%clk 0:00:14]}  Bc5+ {[%clk 0:00:02]} 29. Kd2 {[%clk 0:00:04]}  f4 {[%clk 0:00:02]} 30. Bf1 {[%clk 0:00:04]}  fxg3 {[%clk 0:00:02]} 31. Bxg2 {[%clk 0:00:04]}  Bxg2 {[%clk 0:00:03]} 32. fxg3 {[%clk 0:00:05]}  Bf3 {[%clk 0:00:03]} 33. Ra1 {[%clk 0:00:05]}  Ke7 {[%clk 0:00:03]} 34. Ra5 {[%clk 0:00:05]}  d6 {[%clk 0:00:04]} 35. Ra6 {[%clk 0:00:04]}  e5 {[%clk 0:00:03]} 36. c3 {[%clk 0:00:04]}  e4 {[%clk 0:00:03]} 0-1


[Site "https://www.chess.com"]

[Event "Titled Tuesday Blitz August 09 Early 2022"]
[White "Zou, Chen"]
[Black "Jeet, Jain"]
[WhiteFideId "8610959"]
[BlackFideId "5073022"]
[WhiteElo "2276"]
[BlackElo "2055"]
[Result "1-0"]
[Round "05"]
[TimeControl "180+1"]
[Date "2022.08.09"]
[WhiteClock "0:00:08"]
[BlackClock "0:00:16"]

1. d4 {[%clk 0:03:00]}  Nf6 {[%clk 0:02:59]} 2. c4 {[%clk 0:02:54]}  g6 {[%clk 0:02:59]} 3. Nf3 {[%clk 0:02:45]}  Bg7 {[%clk 0:02:59]} 4. g3 {[%clk 0:02:43]}  O-O {[%clk 0:02:59]} 5. Bg2 {[%clk 0:02:43]}  d6 {[%clk 0:02:59]} 6. O-O {[%clk 0:02:43]}  c6 {[%clk 0:02:59]} 7. Nc3 {[%clk 0:02:42]}  Nbd7 {[%clk 0:02:57]} 8. e4 {[%clk 0:02:38]}  e5 {[%clk 0:02:56]} 9. h3 {[%clk 0:02:25]}  Qa5 {[%clk 0:02:56]} 10. Re1 {[%clk 0:02:23]}  Re8 {[%clk 0:02:55]} 11. Be3 {[%clk 0:02:04]}  a6 {[%clk 0:02:55]} 12. a4 {[%clk 0:02:01]}  exd4 {[%clk 0:02:46]} 13. Nxd4 {[%clk 0:01:58]}  Nc5 {[%clk 0:02:41]} 14. Qc2 {[%clk 0:01:56]}  Ne6 {[%clk 0:02:28]} 15. Nf3 {[%clk 0:01:49]}  d5 {[%clk 0:02:21]} 16. cxd5 {[%clk 0:01:17]}  cxd5 {[%clk 0:02:22]} 17. exd5 {[%clk 0:01:01]}  Nxd5 {[%clk 0:02:21]} 18. Nxd5 {[%clk 0:01:01]}  Qxd5 {[%clk 0:02:22]} 19. Rad1 {[%clk 0:01:00]}  Qa5 {[%clk 0:02:20]} 20. b3 {[%clk 0:00:35]}  Nf8 {[%clk 0:02:19]} 21. Nd4 {[%clk 0:00:23]}  Ne6 {[%clk 0:02:10]} 22. Nxe6 {[%clk 0:00:20]}  Bxe6 {[%clk 0:02:09]} 23. Bd2 {[%clk 0:00:16]}  Qb6 {[%clk 0:02:08]} 24. b4 {[%clk 0:00:17]}  Rac8 {[%clk 0:02:07]} 25. Qd3 {[%clk 0:00:17]}  Red8 {[%clk 0:02:03]} 26. Be3 {[%clk 0:00:15]}  Qxb4 {[%clk 0:02:00]} 27. Qxd8+ {[%clk 0:00:15]}  Rxd8 {[%clk 0:01:45]} 28. Rxd8+ {[%clk 0:00:16]}  Bf8 {[%clk 0:01:45]} 29. Bh6 {[%clk 0:00:04]}  Qxe1+ {[%clk 0:01:44]} 30. Kh2 {[%clk 0:00:05]}  Qb4 {[%clk 0:01:44]} 31. a5 {[%clk 0:00:05]}  f5 {[%clk 0:01:32]} 32. Rxf8+ {[%clk 0:00:04]}  Qxf8 {[%clk 0:01:31]} 33. Bxf8 {[%clk 0:00:05]}  Kxf8 {[%clk 0:01:32]} 34. Bxb7 {[%clk 0:00:06]}  Bc4 {[%clk 0:01:32]} 35. Kg2 {[%clk 0:00:06]}  Ke7 {[%clk 0:01:32]} 36. Kf3 {[%clk 0:00:06]}  Kd6 {[%clk 0:01:33]} 37. Kf4 {[%clk 0:00:07]}  h6 {[%clk 0:01:27]} 38. h4 {[%clk 0:00:07]}  Ke6 {[%clk 0:01:14]} 39. f3 {[%clk 0:00:07]}  Kf6 {[%clk 0:01:13]} 40. Ke3 {[%clk 0:00:07]}  g5 {[%clk 0:01:13]} 41. hxg5+ {[%clk 0:00:07]}  hxg5 {[%clk 0:01:14]} 42. Kd4 {[%clk 0:00:08]}  Be2 {[%clk 0:01:13]} 43. f4 {[%clk 0:00:08]}  gxf4 {[%clk 0:01:12]} 44. gxf4 {[%clk 0:00:09]}  Ke6 {[%clk 0:01:05]} 45. Kc5 {[%clk 0:00:09]}  Kf6 {[%clk 0:00:28]} 46. Kb6 {[%clk 0:00:09]}  Kg6 {[%clk 0:00:28]} 47. Bxa6 {[%clk 0:00:10]}  Bf3 {[%clk 0:00:21]} 48. Bb7 {[%clk 0:00:10]}  Be2 {[%clk 0:00:21]} 49. Kc5 {[%clk 0:00:07]}  Kh5 {[%clk 0:00:16]} 50. Kd4 {[%clk 0:00:07]}  Kg4 {[%clk 0:00:16]} 51. Ke3 {[%clk 0:00:07]}  Bb5 {[%clk 0:00:16]} 52. a6 {[%clk 0:00:08]} 1-0


[Site "https://www.chess.com"]

[Event "Titled Tuesday Blitz August 09 Early 2022"]
[White "Aaditya Dhingra"]
[Black "Papasimakopoulos, Alexandros"]
[WhiteFideId "25678191"]
[BlackFideId "4244125"]
[WhiteElo "1849"]
[BlackElo "2357"]
[Result "0-1"]
[Round "06"]
[TimeControl "180+1"]
[Date "2022.08.09"]
[WhiteClock "0:00:09"]
[BlackClock "0:00:22"]

1. e4 {[%clk 0:03:00]}  e6 {[%clk 0:03:00]} 2. d4 {[%clk 0:03:00]}  d5 {[%clk 0:03:00]} 3. Nd2 {[%clk 0:03:00]}  Nf6 {[%clk 0:03:00]} 4. e5 {[%clk 0:02:59]}  Nfd7 {[%clk 0:03:00]} 5. Bd3 {[%clk 0:03:00]}  c5 {[%clk 0:03:00]} 6. c3 {[%clk 0:03:00]}  Nc6 {[%clk 0:03:01]} 7. Ne2 {[%clk 0:03:01]}  cxd4 {[%clk 0:03:01]} 8. cxd4 {[%clk 0:03:01]}  f6 {[%clk 0:03:01]} 9. exf6 {[%clk 0:03:01]}  Nxf6 {[%clk 0:03:02]} 10. Nf3 {[%clk 0:03:01]}  Bd6 {[%clk 0:03:02]} 11. O-O {[%clk 0:03:01]}  Qc7 {[%clk 0:03:03]} 12. Bg5 {[%clk 0:03:01]}  O-O {[%clk 0:03:03]} 13. Bh4 {[%clk 0:03:01]}  Nh5 {[%clk 0:03:03]} 14. Bg3 {[%clk 0:02:57]}  Nxg3 {[%clk 0:03:02]} 15. hxg3 {[%clk 0:02:58]}  Bd7 {[%clk 0:03:00]} 16. Rc1 {[%clk 0:02:57]}  Rf6 {[%clk 0:03:00]} 17. a3 {[%clk 0:02:51]}  Be8 {[%clk 0:02:58]} 18. b4 {[%clk 0:02:43]}  a6 {[%clk 0:02:58]} 19. Qd2 {[%clk 0:02:33]}  Bh5 {[%clk 0:02:55]} 20. Qe3 {[%clk 0:02:29]}  Raf8 {[%clk 0:02:53]} 21. Ng5 {[%clk 0:02:25]}  Re8 {[%clk 0:02:39]} 22. Nxh7 {[%clk 0:02:17]}  Rh6 {[%clk 0:02:38]} 23. Ng5 {[%clk 0:02:16]}  e5 {[%clk 0:02:29]} 24. Rfe1 {[%clk 0:02:02]}  e4 {[%clk 0:02:27]} 25. Bb1 {[%clk 0:02:01]}  Qd7 {[%clk 0:01:58]} 26. Nf4 {[%clk 0:01:48]}  Qf5 {[%clk 0:01:48]} 27. Nxh5 {[%clk 0:01:38]}  Rxh5 {[%clk 0:01:49]} 28. Nh3 {[%clk 0:01:36]}  Re6 {[%clk 0:01:49]} 29. Red1 {[%clk 0:00:44]}  Reh6 {[%clk 0:01:42]} 30. Kf1 {[%clk 0:00:44]}  Qg4 {[%clk 0:01:18]} 31. Ba2 {[%clk 0:00:39]}  Ne7 {[%clk 0:01:07]} 32. Qe2 {[%clk 0:00:37]}  Qe6 {[%clk 0:00:59]} 33. Ke1 {[%clk 0:00:35]}  Rxh3 {[%clk 0:00:44]} 34. gxh3 {[%clk 0:00:34]}  Rxh3 {[%clk 0:00:45]} 35. Kd2 {[%clk 0:00:33]}  Rh2 {[%clk 0:00:45]} 36. Rh1 {[%clk 0:00:31]}  Bxg3 {[%clk 0:00:45]} 37. Rxh2 {[%clk 0:00:29]}  Bxh2 {[%clk 0:00:46]} 38. Rh1 {[%clk 0:00:27]}  Bf4+ {[%clk 0:00:45]} 39. Kc3 {[%clk 0:00:24]}  Nf5 {[%clk 0:00:38]} 40. Qg4 {[%clk 0:00:17]}  Qc6+ {[%clk 0:00:22]} 41. Kb2 {[%clk 0:00:16]}  Bd2 {[%clk 0:00:23]} 42. Qxf5 {[%clk 0:00:13]}  Qc3+ {[%clk 0:00:22]} 43. Kb1 {[%clk 0:00:13]}  Qd3+ {[%clk 0:00:22]} 44. Kb2 {[%clk 0:00:13]}  Bc3+ {[%clk 0:00:22]} 45. Kb3 {[%clk 0:00:09]}  Bxd4+ {[%clk 0:00:22]} 46. Ka4 {[%clk 0:00:09]}  b5+ {[%clk 0:00:22]} 47. Ka5 {[%clk 0:00:09]}  Qxa3# {[%clk 0:00:22]} 0-1


[Site "https://www.chess.com"]

[Event "Titled Tuesday Blitz August 09 Early 2022"]
[White "Abdrlauf, Elham"]
[Black "Andreikin, Dmitry"]
[WhiteFideId "1533533"]
[BlackFideId "4158814"]
[WhiteElo "2853"]
[BlackElo "3120"]
[Result "0-1"]
[Round "06"]
[TimeControl "180+1"]
[Date "2022.08.09"]
[WhiteClock "0:00:03"]
[BlackClock "0:00:43"]

1. e4 {[%clk 0:02:59]}  c5 {[%clk 0:02:59]} 2. Nf3 {[%clk 0:03:00]}  e6 {[%clk 0:02:59]} 3. c3 {[%clk 0:03:00]}  d5 {[%clk 0:02:58]} 4. e5 {[%clk 0:03:00]}  Nc6 {[%clk 0:02:57]} 5. d4 {[%clk 0:02:54]}  Qb6 {[%clk 0:02:58]} 6. Be2 {[%clk 0:02:48]}  Bd7 {[%clk 0:02:57]} 7. O-O {[%clk 0:02:48]}  Rc8 {[%clk 0:02:57]} 8. dxc5 {[%clk 0:02:48]}  Qc7 {[%clk 0:02:57]} 9. Bf4 {[%clk 0:02:40]}  Bxc5 {[%clk 0:02:54]} 10. b4 {[%clk 0:02:39]}  Be7 {[%clk 0:02:50]} 11. Na3 {[%clk 0:02:38]}  a6 {[%clk 0:02:45]} 12. Nc2 {[%clk 0:02:31]}  Nh6 {[%clk 0:02:44]} 13. Ncd4 {[%clk 0:02:24]}  Nxd4 {[%clk 0:02:35]} 14. cxd4 {[%clk 0:02:18]}  Nf5 {[%clk 0:02:35]} 15. Rb1 {[%clk 0:02:12]}  O-O {[%clk 0:02:33]} 16. Bd3 {[%clk 0:02:10]}  Bb5 {[%clk 0:02:33]} 17. g4 {[%clk 0:01:53]}  Bxd3 {[%clk 0:02:12]} 18. Qxd3 {[%clk 0:01:53]}  Qc3 {[%clk 0:02:12]} 19. Rfd1 {[%clk 0:01:39]}  Nh4 {[%clk 0:02:02]} 20. Nxh4 {[%clk 0:01:37]}  Bxh4 {[%clk 0:02:03]} 21. b5 {[%clk 0:01:13]}  Qxd3 {[%clk 0:01:46]} 22. Rxd3 {[%clk 0:01:14]}  Rc2 {[%clk 0:01:46]} 23. Bg3 {[%clk 0:01:01]}  Bxg3 {[%clk 0:01:33]} 24. hxg3 {[%clk 0:01:02]}  Rxa2 {[%clk 0:01:33]} 25. bxa6 {[%clk 0:01:02]}  bxa6 {[%clk 0:01:32]} 26. Rb7 {[%clk 0:01:03]}  h6 {[%clk 0:01:29]} 27. Ra7 {[%clk 0:00:56]}  Ra4 {[%clk 0:01:29]} 28. Kg2 {[%clk 0:00:54]}  Rc8 {[%clk 0:01:27]} 29. Rf3 {[%clk 0:00:22]}  Rf8 {[%clk 0:01:27]} 30. Rd3 {[%clk 0:00:20]}  a5 {[%clk 0:01:27]} 31. Kh3 {[%clk 0:00:16]}  Ra1 {[%clk 0:01:20]} 32. f4 {[%clk 0:00:09]}  Rc8 {[%clk 0:01:18]} 33. Rd2 {[%clk 0:00:02]}  Rc3 {[%clk 0:01:11]} 34. f5 {[%clk 0:00:01]}  Raa3 {[%clk 0:01:05]} 35. Rg2 {[%clk 0:00:02]}  Rd3 {[%clk 0:01:05]} 36. fxe6 {[%clk 0:00:01]}  fxe6 {[%clk 0:01:05]} 37. g5 {[%clk 0:00:01]}  hxg5 {[%clk 0:01:02]} 38. Kg4 {[%clk 0:00:02]}  Kh7 {[%clk 0:00:57]} 39. Re7 {[%clk 0:00:01]}  Kh6 {[%clk 0:00:42]} 40. Rxe6+ {[%clk 0:00:02]}  g6 {[%clk 0:00:42]} 41. Rh2+ {[%clk 0:00:02]}  Kg7 {[%clk 0:00:43]} 42. Re7+ {[%clk 0:00:03]}  Kf8 {[%clk 0:00:43]} 0-1


[Site "https://www.chess.com"]

[Event "Titled Tuesday Blitz August 09 Early 2022"]
[White "Agasarov, Benik"]
[Black "Mikhnenko, Alexander"]
[WhiteFideId "13314823"]
[BlackFideId "34143014"]
[WhiteElo "2152"]
[BlackElo "2134"]
[Result "1-0"]
[Round "06"]
[TimeControl "180+1"]
[Date "2022.08.09"]
[WhiteClock "0:02:01"]
[BlackClock "0:01:23"]

1. e4 {[%clk 0:03:00]}  c5 {[%clk 0:02:59]} 2. Nf3 {[%clk 0:03:00]}  e6 {[%clk 0:02:56]} 3. d4 {[%clk 0:02:57]}  cxd4 {[%clk 0:02:57]} 4. Nxd4 {[%clk 0:02:58]}  Nf6 {[%clk 0:02:58]} 5. Nc3 {[%clk 0:02:57]}  Nc6 {[%clk 0:02:58]} 6. Nxc6 {[%clk 0:02:52]}  bxc6 {[%clk 0:02:57]} 7. e5 {[%clk 0:02:53]}  Nd5 {[%clk 0:02:57]} 8. Ne4 {[%clk 0:02:53]}  Qc7 {[%clk 0:02:57]} 9. f4 {[%clk 0:02:53]}  Qb6 {[%clk 0:02:58]} 10. c4 {[%clk 0:02:53]}  Bb4+ {[%clk 0:02:58]} 11. Ke2 {[%clk 0:02:50]}  f5 {[%clk 0:02:58]} 12. Nf2 {[%clk 0:02:49]}  Ba6 {[%clk 0:02:56]} 13. Kf3 {[%clk 0:02:49]}  Ne7 {[%clk 0:02:57]} 14. Be3 {[%clk 0:02:47]}  Bc5 {[%clk 0:02:53]} 15. Bxc5 {[%clk 0:02:46]}  Qxc5 {[%clk 0:02:53]} 16. b3 {[%clk 0:02:46]}  g5 {[%clk 0:02:45]} 17. g3 {[%clk 0:02:41]}  gxf4 {[%clk 0:02:30]} 18. gxf4 {[%clk 0:02:41]}  Ng6 {[%clk 0:02:28]} 19. h4 {[%clk 0:02:39]}  Nxf4 {[%clk 0:02:16]} 20. Qd6 {[%clk 0:02:37]}  Qxd6 {[%clk 0:02:12]} 21. exd6 {[%clk 0:02:38]}  Ng6 {[%clk 0:02:12]} 22. h5 {[%clk 0:02:35]}  Ne5+ {[%clk 0:02:10]} 23. Kf4 {[%clk 0:02:35]}  Nf7 {[%clk 0:02:09]} 24. c5 {[%clk 0:02:36]}  Bxf1 {[%clk 0:02:07]} 25. Raxf1 {[%clk 0:02:37]}  Nh6 {[%clk 0:02:02]} 26. Rhg1 {[%clk 0:02:34]}  Kf7 {[%clk 0:02:02]} 27. Nd3 {[%clk 0:02:34]}  Ng4 {[%clk 0:01:57]} 28. Rxg4 {[%clk 0:02:04]}  fxg4 {[%clk 0:01:57]} 29. Ne5+ {[%clk 0:02:04]}  Ke8 {[%clk 0:01:55]} 30. Kxg4 {[%clk 0:02:04]}  Rg8+ {[%clk 0:01:51]} 31. Kh4 {[%clk 0:02:05]}  a5 {[%clk 0:01:30]} 32. Rf7 {[%clk 0:02:05]}  Rd8 {[%clk 0:01:23]} 33. Re7+ {[%clk 0:02:01]} 1-0


[Site "https://www.chess.com"]

[Event "Titled Tuesday Blitz August 09 Early 2022"]
[White "Aslanov, Umid"]
[Black "Ezov"]
[WhiteFideId "13412620"]
[WhiteElo "1826"]
[BlackElo "2267"]
[Result "1-0"]
[Round "06"]
[TimeControl "180+1"]
[Date "2022.08.09"]
[WhiteClock "0:01:27"]
[BlackClock "0:00:09"]

1. e4 {[%clk 0:03:00]}  e6 {[%clk 0:02:58]} 2. d4 {[%clk 0:03:00]}  d5 {[%clk 0:02:59]} 3. Nd2 {[%clk 0:03:01]}  Nf6 {[%clk 0:02:59]} 4. e5 {[%clk 0:03:01]}  Nfd7 {[%clk 0:02:59]} 5. Bd3 {[%clk 0:03:02]}  c5 {[%clk 0:02:59]} 6. c3 {[%clk 0:03:03]}  Nc6 {[%clk 0:02:54]} 7. Ne2 {[%clk 0:03:03]}  cxd4 {[%clk 0:02:54]} 8. cxd4 {[%clk 0:03:03]}  Qb6 {[%clk 0:02:54]} 9. Nf3 {[%clk 0:03:03]}  Bb4+ {[%clk 0:02:53]} 10. Bd2 {[%clk 0:03:03]}  Bxd2+ {[%clk 0:02:53]} 11. Qxd2 {[%clk 0:03:03]}  Qb4 {[%clk 0:02:52]} 12. a3 {[%clk 0:03:01]}  Qxd2+ {[%clk 0:02:51]} 13. Kxd2 {[%clk 0:03:02]}  Nb6 {[%clk 0:02:51]} 14. Rhc1 {[%clk 0:03:01]}  Bd7 {[%clk 0:02:51]} 15. b4 {[%clk 0:03:01]}  Rc8 {[%clk 0:02:50]} 16. Nc3 {[%clk 0:02:57]}  Nb8 {[%clk 0:02:44]} 17. Nb5 {[%clk 0:02:47]}  Bxb5 {[%clk 0:02:40]} 18. Rxc8+ {[%clk 0:02:46]}  Nxc8 {[%clk 0:02:41]} 19. Bxb5+ {[%clk 0:02:46]}  Kd8 {[%clk 0:02:25]} 20. a4 {[%clk 0:02:46]}  a6 {[%clk 0:02:22]} 21. Bd3 {[%clk 0:02:45]}  h6 {[%clk 0:02:17]} 22. b5 {[%clk 0:02:40]}  a5 {[%clk 0:02:11]} 23. Rc1 {[%clk 0:02:34]}  Nb6 {[%clk 0:02:09]} 24. Nh4 {[%clk 0:02:18]}  Kd7 {[%clk 0:01:53]} 25. f4 {[%clk 0:02:16]}  Rc8 {[%clk 0:01:45]} 26. Ra1 {[%clk 0:02:12]}  Nc4+ {[%clk 0:01:39]} 27. Bxc4 {[%clk 0:02:12]}  Rxc4 {[%clk 0:01:40]} 28. Kd3 {[%clk 0:02:13]}  b6 {[%clk 0:01:31]} 29. f5 {[%clk 0:02:12]}  Ke7 {[%clk 0:01:24]} 30. g4 {[%clk 0:02:09]}  Nd7 {[%clk 0:01:21]} 31. Nf3 {[%clk 0:02:09]}  Nf8 {[%clk 0:01:17]} 32. Nd2 {[%clk 0:02:08]}  Rc7 {[%clk 0:01:14]} 33. h4 {[%clk 0:02:07]}  h5 {[%clk 0:01:08]} 34. Rg1 {[%clk 0:02:00]}  hxg4 {[%clk 0:01:03]} 35. Rxg4 {[%clk 0:02:01]}  g6 {[%clk 0:01:01]} 36. fxg6 {[%clk 0:01:48]}  Nxg6 {[%clk 0:01:02]} 37. h5 {[%clk 0:01:48]}  Nf8 {[%clk 0:00:58]} 38. h6 {[%clk 0:01:45]}  Ng6 {[%clk 0:00:56]} 39. Nf3 {[%clk 0:01:39]}  Kf8 {[%clk 0:00:27]} 40. Ng5 {[%clk 0:01:35]}  Rc4 {[%clk 0:00:21]} 41. Nxe6+ {[%clk 0:01:33]}  fxe6 {[%clk 0:00:20]} 42. Rxg6 {[%clk 0:01:33]}  Kf7 {[%clk 0:00:19]} 43. Rf6+ {[%clk 0:01:31]}  Kg8 {[%clk 0:00:18]} 44. Rxe6 {[%clk 0:01:31]}  Rxa4 {[%clk 0:00:18]} 45. Rxb6 {[%clk 0:01:31]}  Ra3+ {[%clk 0:00:18]} 46. Ke2 {[%clk 0:01:32]}  Ra2+ {[%clk 0:00:18]} 47. Kf3 {[%clk 0:01:32]}  a4 {[%clk 0:00:18]} 48. Ra6 {[%clk 0:01:32]}  a3 {[%clk 0:00:17]} 49. b6 {[%clk 0:01:31]}  Rb2 {[%clk 0:00:16]} 50. e6 {[%clk 0:01:29]}  a2 {[%clk 0:00:15]} 51. e7 {[%clk 0:01:29]}  Rb3+ {[%clk 0:00:15]} 52. Kf4 {[%clk 0:01:29]}  Kf7 {[%clk 0:00:14]} 53. h7 {[%clk 0:01:29]}  Rh3 {[%clk 0:00:13]} 54. b7 {[%clk 0:01:29]}  Rh4+ {[%clk 0:00:10]} 55. Kg5 {[%clk 0:01:28]}  Rxd4 {[%clk 0:00:09]} 56. e8=Q+ {[%clk 0:01:29]}  Kxe8 {[%clk 0:00:08]} 57. h8=Q+ {[%clk 0:01:29]}  Kd7 {[%clk 0:00:09]} 58. b8=Q {[%clk 0:01:27]} 1-0


[Site "https://www.chess.com"]